bitfinex-derivatives/quotes_ETHF0:USTF0_20250317
["timestamp","ask_amount","ask_price","bid_price","bid_amount"]
[1742173805598,3.48285711,1906.1,1906.0,49.15205661]
[1742173805798,4.84965711,1906.1,1906.0,49.15205661]
[1742173805995,0.00785711,1906.1,1906.0,50.20145661]
[1742173806191,3.48285711,1906.1,1906.0,50.20145661]
[1742173806398,3.48285711,1906.1,1906.0,50.88535661]
[1742173806598,4.53219711,1906.1,1906.0,50.88535661]
[1742173806907,1.04928,1906.3,1906.2,1.04929]
[1742173807095,4.52428,1906.3,1906.2,8.06484661]
[1742173808005,4.52328,1906.3,1906.2,8.06484661]
[1742173808301,4.52328,1906.3,1906.2,7.05835661]
[1742173808908,1.05708711,1906.4,1906.2,7.05835661]
[1742173809107,1.05708711,1906.4,1906.3,2.41103]
[1742173809398,1.05708711,1906.4,1906.3,1.3618]
[1742173809607,1.05708711,1906.4,1906.3,2.41103]
[1742173809802,4.53108711,1906.4,1906.3,2.41103]
[1742173810195,1.05708711,1906.4,1906.3,6.21878661]
[1742173810402,4.53108711,1906.4,1906.3,6.21878661]
[1742173812101,4.53108711,1906.4,1906.3,5.16955661]
[1742173812293,4.53108711,1906.4,1906.3,6.21878661]
[1742173813508,3.48185711,1906.4,1906.3,6.21878661]
[1742173814102,4.53103711,1906.4,1906.3,5.16955661]
[1742173816913,3.48185711,1906.4,1906.3,6.21878661]
[1742173817106,4.53103711,1906.4,1906.3,5.16955661]
[1742173817318,5.86033711,1906.4,1906.3,5.16955661]
[1742173818805,4.81115711,1906.4,1906.3,5.16955661]
[1742173819005,5.86033711,1906.4,1906.3,5.16955661]
[1742173820610,5.86033711,1906.4,1906.3,2.71985661]
[1742173821505,5.86033711,1906.4,1906.2,3.2078]
[1742173821506,1.04934,1906.1,1906.0,40.8]
[1742173821708,4.52234,1906.1,1906.0,42.1772]
[1742173822099,4.52234,1906.1,1906.0,40.8]
[1742173822500,5.95104,1906.1,1906.0,40.8]
[1742173823809,6.60454,1906.1,1906.0,40.8]
[1742173825110,1.0494,1906.0,1905.9,0.00785711]
[1742173825306,2.4781,1906.0,1905.9,0.00785711]
[1742173826009,2.88457195,1906.0,1905.9,40.80785711]
[1742173826209,4.9781,1906.0,1905.9,40.80785711]
[1742173828214,2.4781,1906.0,1905.9,40.80785711]
[1742173829316,5.9521,1906.0,1905.9,40.80785711]
[1742173833922,11.6599,1906.0,1905.9,40.80785711]
[1742173836220,1.04973,1905.4,1905.3,5.92765661]
[1742173836420,4.52373,1905.4,1905.3,3.2078]
[1742173837115,4.52373,1905.4,1905.3,44.0078]
[1742173837514,3.474,1905.4,1905.3,44.0078]
[1742173837716,4.52373,1905.4,1905.3,44.0078]
[1742173838616,3.474,1905.6,1905.3,48.25844]
[1742173838918,3.474,1905.6,1905.5,3.2078]
[1742173839317,3.474,1905.6,1905.5,4.641]
[1742173839516,4.52362,1905.6,1905.5,48.16085661]
[1742173844223,4.52362,1905.6,1905.5,44.95305661]
[1742173844522,5.20962,1905.6,1905.5,43.51985661]
[1742173844925,6.58762,1905.6,1905.5,43.51985661]
[1742173845312,6.58762,1905.6,1905.5,40.8]
[1742173847931,9.08762,1905.6,1905.5,40.8]
[1742173848241,1.05,1904.9,1904.8,2.71985661]
[1742173848419,4.524,1904.9,1904.8,1.4403]
[1742173849219,4.524,1904.9,1904.8,42.2403]
[1742173851523,5.9093,1904.9,1904.8,42.2403]
[1742173852230,5.9093,1904.9,1904.8,40.8]
[1742173852833,4.524,1904.9,1904.8,40.8]
[1742173853429,5.9603,1904.9,1904.8,40.8]
[1742173853729,5.9603,1904.9,1904.8,42.2333]
[1742173855438,4.524,1904.9,1904.8,42.2333]
[1742173857028,3.474,1904.9,1904.8,45.4411]
[1742173857236,1.05783711,1905.0,1904.8,45.4411]
[1742173857532,3.474,1904.9,1904.8,45.05786]
[1742173857729,0.00785711,1905.0,1904.8,45.05786]
[1742173857730,0.00785711,1905.0,1904.9,1.05]
[1742173857934,3.48185711,1905.0,1904.9,1.05]
[1742173858131,3.48185711,1905.0,1904.8,4.25783]
[1742173858132,4.53182711,1905.0,1904.8,4.25783]
[1742173858327,3.48185711,1905.0,1904.9,1.05]
[1742173858535,3.48185711,1905.0,1904.9,41.85]
[1742173858937,4.53180711,1905.0,1904.9,41.85]
[1742173860336,3.474,1905.1,1904.9,44.35]
[1742173860536,1.04995,1905.0,1904.9,41.85]
[1742173860739,1.04995,1905.0,1904.9,45.0578]
[1742173860939,1.04995,1905.0,1904.9,47.5578]
[1742173861332,4.53179711,1905.1,1905.0,1.04995]
[1742173861638,0.00785711,1905.1,1905.0,3.76980661]
[1742173861823,0.00785711,1905.1,1905.0,6.26980661]
[1742173862136,4.52382,1905.3,1905.2,1.04984]
[1742173862335,4.52382,1905.3,1905.2,6.97749661]
[1742173863029,4.52382,1905.3,1905.2,5.92765661]
[1742173863946,3.474,1905.3,1905.2,6.97749661]
[1742173864641,0.00785711,1905.4,1905.3,1.04978]
[1742173864942,1.05758711,1905.4,1905.3,1.04978]
[1742173865741,0.00785711,1905.4,1905.3,1.04978]
[1742173867131,1.05758711,1905.4,1905.3,1.04978]
[1742173867335,0.00785711,1905.4,1905.3,1.04978]
[1742173868835,0.00785711,1905.4,1905.3,3.76963661]
[1742173869038,0.00785711,1905.4,1905.3,4.43723661]
[1742173871332,0.00785711,1905.4,1905.3,5.75613661]
[1742173872934,1.05758711,1905.4,1905.3,4.03875661]
[1742173873139,2.45748711,1905.4,1905.3,5.08853661]
[1742173873347,2.45748711,1905.4,1905.3,4.03875661]
[1742173873745,2.45748711,1905.4,1905.3,5.08853661]
[1742173873946,2.45748711,1905.4,1905.3,4.03875661]
[1742173874341,2.45748711,1905.4,1905.3,5.08853661]
[1742173874744,0.00785711,1905.4,1905.3,5.08853661]
[1742173875047,3.48085711,1905.4,1905.3,5.08853661]
[1742173875347,0.00785711,1905.4,1905.3,5.08853661]
[1742173875851,3.473,1905.7,1905.3,6.53875661]
[1742173876148,4.5226,1905.7,1905.6,1.04962]
[1742173876336,2.3706,1905.7,1905.6,1.04962]
[1742173876540,4.794,1905.7,1905.6,43.27782]
[1742173877051,5.84356,1905.7,1905.6,43.27782]
[1742173877245,4.794,1905.7,1905.6,43.27782]
[1742173877447,3.473,1905.7,1905.6,43.27782]
[1742173878347,3.14466711,1905.8,1905.7,1.04956]
[1742173878550,4.20215711,1905.8,1905.7,5.68646]
[1742173878753,0.00785711,1905.8,1905.7,5.68646]
[1742173878946,0.00785711,1905.8,1905.7,8.40631661]
[1742173879142,3.473,1906.0,1905.9,1.04945]
[1742173879344,3.473,1906.0,1905.9,4.25725]
[1742173879752,2.0778,1906.2,1906.1,1.04934]
[1742173879953,4.1848,1906.2,1906.1,45.05714]
[1742173880153,0.6897,1906.3,1906.2,1.04929]
[1742173880453,1.04929,1906.2,1906.1,46.4862]
[1742173880644,5.21980711,1906.3,1906.2,1.04929]
[1742173880939,5.21978711,1906.3,1906.2,1.04929]
[1742173882456,1.04929,1906.2,1906.1,45.05711]
[1742173882651,5.21982711,1906.3,1906.1,45.05711]
[1742173882953,1.04929,1906.2,1906.1,44.0078]
[1742173883154,1.04929,1906.2,1906.1,40.8]
[1742173883350,1.04929,1906.2,1906.1,41.84934]
[1742173883555,5.21983711,1906.3,1906.1,41.84934]
[1742173883853,1.04929,1906.2,1906.1,40.8]
[1742173885250,5.21983711,1906.3,1906.1,40.8]
[1742173885450,4.17055711,1906.3,1906.1,44.0078]
[1742173885648,5.21978711,1906.3,1906.1,45.05712]
[1742173885847,5.21978711,1906.3,1906.1,44.0078]
[1742173886048,1.04929,1906.2,1906.1,44.0078]
[1742173886447,4.52129,1906.2,1906.1,44.0078]
[1742173888150,7.72909,1906.2,1906.1,40.8]
[1742173888455,7.02129,1906.2,1906.1,40.8]
[1742173889454,1.04934,1906.1,1906.0,0.00785711]
[1742173889761,1.04951,1905.8,1905.7,3.2078]
[1742173889961,4.52151,1905.8,1905.7,3.2078]
[1742173890361,4.52151,1905.8,1905.7,40.8]
[1742173890554,7.72931,1905.8,1905.7,40.8]
[1742173891255,10.22931,1905.8,1905.7,40.8]
[1742173891460,11.57061,1905.8,1905.7,40.8]
[1742173891958,11.57061,1905.8,1905.6,0.00785711]
[1742173891959,1.04956,1905.7,1905.6,7.11e-06]
[1742173892155,2.48029302,1905.7,1905.6,7.11e-06]
[1742173892350,4.98029302,1905.7,1905.6,7.11e-06]
[1742173892755,4.98029871,1905.7,1905.6,7.11e-06]
[1742173893065,2.48029871,1905.7,1905.6,40.80000711]
[1742173893261,4.98029871,1905.7,1905.6,40.80000711]
[1742173893660,3.08426,1905.7,1905.6,40.80000711]
[1742173896362,6.55626,1905.7,1905.6,40.80000711]
[1742173906176,9.05626,1905.7,1905.6,40.80000711]
[1742173907460,6.55626,1905.7,1905.6,40.80000711]
[1742173912266,3.08426,1905.7,1905.6,40.80000711]
[1742173912571,5.86286,1905.7,1905.6,40.80000711]
[1742173913664,1.04956,1905.7,1905.6,40.80000711]
[1742173913864,4.52156,1905.7,1905.6,40.80000711]
[1742173914065,5.91446,1905.7,1905.6,40.80000711]
[1742173914775,4.52156,1905.7,1905.6,40.80000711]
[1742173914968,4.52156,1905.7,1905.6,41.50060711]
[1742173915577,3.472,1905.7,1905.6,45.75802711]
[1742173915969,3.472,1905.7,1905.6,46.13680711]
[1742173917173,4.52156,1905.7,1905.6,46.13680711]
[1742173917475,3.472,1905.7,1905.6,46.13680711]
[1742173917661,4.52156,1905.7,1905.6,46.13680711]
[1742173920976,4.52156,1905.7,1905.6,42.92900711]
[1742173921373,5.92016,1905.7,1905.6,42.22840711]
[1742173926175,9.12796,1905.7,1905.6,42.22840711]
[1742173926380,5.92016,1905.7,1905.6,42.22840711]
[1742173926576,5.92016,1905.7,1905.6,40.80000711]
[1742173926782,11.62796,1905.7,1905.6,40.80000711]
[1742173926983,11.7173926,1905.7,1905.6,40.80000711]
[1742173927491,1.04978,1905.3,1905.2,1.3174]
[1742173927789,4.52078,1905.3,1905.2,1.3174]
[1742173927989,1.05,1904.9,1904.8,3.8666]
[1742173928185,4.521,1904.9,1904.8,1.9762]
[1742173928388,4.521,1904.9,1904.8,42.7762]
[1742173929392,3.471,1904.9,1904.8,42.7762]
[1742173929887,4.521,1904.9,1904.8,42.7762]
[1742173930190,4.521,1904.9,1904.8,45.984]
[1742173931796,3.471,1904.9,1904.8,45.984]
[1742173932000,4.521,1904.9,1904.8,45.3252]
[1742173933804,4.521,1904.9,1904.8,46.7081]
[1742173935400,5.8677,1904.9,1904.8,46.7081]
[1742173935607,5.8677,1904.9,1904.8,45.3252]
[1742173935902,6.5357,1904.9,1904.8,42.1174]
[1742173937705,4.521,1904.9,1904.8,42.1174]
[1742173937900,4.521,1904.9,1904.8,40.8]
[1742173938106,5.8677,1904.9,1904.8,40.8]
[1742173942110,5.8677,1904.9,1904.8,42.1899]
[1742173942402,1.05,1904.9,1904.8,42.1899]
[1742173942605,4.522,1904.9,1904.8,42.1899]
[1742173947011,4.522,1904.9,1904.8,40.8]
[1742173949015,5.8836,1904.9,1904.8,40.8]
[1742173950113,1.05006,1904.8,1904.7,0.00785711]
[1742173950310,1.05022,1904.5,1904.4,1.4478]
[1742173950609,4.52222,1904.5,1904.4,1.4478]
[1742173951113,5.93162,1904.5,1904.4,42.2478]
[1742173953511,6.65392,1904.5,1904.4,42.2478]
[1742173957806,6.65392,1904.5,1904.4,40.8]
[1742173960604,6.65392,1904.5,1904.4,42.1937]
[1742173961615,6.65392,1904.5,1904.4,40.8]
[1742173962913,1.05028,1904.4,1904.3,0.00785711]
[1742173963108,5.67458,1904.4,1904.3,0.00785711]
[1742173963310,2.6262,1904.1,1903.5,3.2078]
[1742173963511,5.2324,1904.0,1903.9,1.4428]
[1742173963714,4.5225,1904.0,1903.9,1.4428]
[1742173964017,4.5225,1904.0,1903.9,42.2428]
[1742173968222,7.7303,1904.0,1903.9,42.2428]
[1742173968517,7.7303,1904.0,1903.9,40.8]
[1742173969322,1.05061,1903.8,1903.7,1.3682]
[1742173969621,4.25841,1903.8,1903.7,1.3682]
[1742173969823,1.05061,1903.8,1903.7,1.3682]
[1742173970023,2.45391,1903.8,1903.7,1.3682]
[1742173970411,5.66171,1903.8,1903.7,42.1682]
[1742173971625,2.45391,1903.8,1903.7,42.1682]
[1742173972419,5.66171,1903.8,1903.7,42.1682]
[1742173972815,2.45391,1903.8,1903.7,42.1682]
[1742173973019,5.66171,1903.8,1903.7,42.1682]
[1742173973622,5.66171,1903.8,1903.7,40.8]
[1742173974419,2.45391,1903.8,1903.7,40.8]
[1742173974620,5.66171,1903.8,1903.7,40.8]
[1742173976826,1.05078,1903.5,1903.4,1.318]
[1742173977024,4.52378,1903.5,1903.4,1.318]
[1742173977920,4.52378,1903.5,1903.4,42.118]
[1742173981720,5.85048,1903.5,1903.4,42.118]
[1742173982117,5.18658,1903.5,1903.4,42.118]
[1742173982324,4.52378,1903.5,1903.4,42.118]
[1742173985931,7.73158,1903.5,1903.4,42.118]
[1742173986130,8.38578,1903.5,1903.4,42.118]
[1742173986628,8.38578,1903.5,1903.4,40.8]
[1742173987822,7.73158,1903.5,1903.4,40.8]
[1742173990230,4.52378,1903.5,1903.4,40.8]
[1742173992325,7.73158,1903.5,1903.4,40.8]
[1742173994428,1.05116,1902.8,1902.7,1.4209]
[1742173994634,4.52416,1902.8,1902.7,1.4209]
[1742173995032,4.52416,1902.8,1902.7,0.7184]
[1742173995337,4.52416,1902.8,1902.7,41.5184]
[1742173995739,4.52416,1902.8,1902.7,42.8907]
[1742173996536,0.00787794,1902.9,1902.7,45.3907]
[1742173996840,3.473,1902.8,1902.7,41.5184]
[1742173997236,3.473,1902.8,1902.7,44.0184]
[1742173997639,4.52416,1902.8,1902.7,41.5184]
[1742174000042,5.93246,1902.8,1902.7,41.5184]
[1742174000731,4.52416,1902.8,1902.7,41.5184]
[1742174002343,2.62808,1902.7,1902.3,2.71985661]
[1742174002541,1.05133,1902.5,1902.4,0.7184]
[1742174002743,4.52433,1902.5,1902.4,0.7184]
[1742174003242,4.52433,1902.5,1902.4,3.9262]
[1742174003443,4.52433,1902.5,1902.4,44.7262]
[1742174003943,3.473,1902.5,1902.4,44.7262]
[1742174004743,4.52433,1902.5,1902.4,44.7262]
[1742174005247,3.473,1902.5,1902.4,44.7262]
[1742174005641,4.52433,1902.5,1902.4,44.7262]
[1742174007643,4.52433,1902.5,1902.4,44.0078]
[1742174011551,4.52433,1902.5,1902.4,45.4327]
[1742174012748,4.52433,1902.5,1902.4,42.2249]
[1742174013256,4.52433,1902.5,1902.4,40.8]
[1742174013655,5.87973,1902.5,1902.4,40.8]
[1742174021762,2.62858,1902.4,1902.0,3.2078]
[1742174021962,1.05149,1902.2,1902.1,1.3444]
[1742174022164,4.52549,1902.2,1902.1,1.3444]
[1742174022571,3.474,1902.2,1902.1,1.3444]
[1742174022772,3.474,1902.2,1902.1,42.1444]
[1742174022975,4.52549,1902.2,1902.1,42.1444]
[1742174027270,5.95639,1902.2,1902.1,44.86425661]
[1742174029574,1.05149,1902.2,1902.1,44.86425661]
[1742174029772,4.52549,1902.2,1902.1,44.86425661]
[1742174030173,5.88009,1902.2,1902.1,44.86425661]
[1742174033078,5.88009,1902.2,1902.1,42.1444]
[1742174035880,5.88009,1902.2,1902.1,40.8]
[1742174037178,5.88009,1902.2,1902.1,42.2314]
[1742174038179,2.40609,1902.2,1902.1,42.2314]
[1742174038384,4.52449,1902.2,1902.1,42.2314]
[1742174039579,8.38859,1902.2,1902.1,40.8]
[1742174039777,1.05177,1901.7,1901.6,4.5757]
[1742174039973,4.52477,1901.7,1901.6,4.5757]
[1742174040680,4.52477,1901.7,1901.6,45.3757]
[1742174040878,4.52477,1901.7,1901.6,46.8131]
[1742174041473,4.52477,1901.7,1901.6,43.6053]
[1742174043183,4.52477,1901.7,1901.6,42.2374]
[1742174043690,1.05221,1900.9,1900.8,3.2078]
[1742174043978,1.05221,1900.9,1900.7,2.71985661]
[1742174043979,3.474,1900.9,1900.7,2.71985661]
[1742174044181,3.474,1900.9,1900.4,2.71985661]
[1742174044182,1.05243,1900.5,1900.4,2.71985661]
[1742174044389,3.491,1900.9,1900.5,1.05242]
[1742174044577,3.491,1900.9,1900.8,3.2078]
[1742174044779,3.49887794,1900.9,1900.8,46.72765661]
[1742174044977,3.49887794,1900.9,1900.8,49.22765661]
[1742174045285,1.06008794,1900.9,1900.8,49.22765661]
[1742174046287,1.06008794,1900.9,1900.8,46.72765661]
[1742174046985,1.06008794,1900.9,1900.8,48.12175661]
[1742174047689,1.05254,1900.3,1900.2,2.71985661]
[1742174048687,1.05254,1900.3,1900.2,43.51985661]
[1742174049080,1.05254,1900.3,1900.2,44.95825661]
[1742174049689,2.38384,1900.3,1900.2,44.95825661]
[1742174051584,1.05254,1900.3,1900.2,44.95825661]
[1742174052184,4.56454,1900.3,1900.2,44.95825661]
[1742174053293,4.56454,1900.3,1900.2,48.16605661]
[1742174053294,1.05254,1900.3,1900.2,48.16605661]
[1742174053487,1.05254,1900.3,1900.2,50.66605661]
[1742174054386,1.05254,1900.3,1900.2,44.95825661]
[1742174059289,1.05254,1900.3,1900.2,40.8]
[1742174060592,1.05254,1900.3,1900.2,45.446]
[1742174060995,1.05254,1900.3,1900.2,42.2382]
[1742174062394,1.05254,1900.3,1900.2,44.95805661]
[1742174063492,2.38344,1900.3,1900.2,44.95805661]
[1742174065090,1.05254,1900.3,1900.2,44.95805661]
[1742174065491,1.05254,1900.3,1900.2,46.31625661]
[1742174067491,2.49134,1900.3,1900.2,46.31625661]
[1742174067687,6.00334,1900.3,1900.2,46.31625661]
[1742174068091,4.56454,1900.3,1900.2,46.31625661]
[1742174068786,4.56454,1900.3,1900.2,40.8]
[1742174068988,1.05277,1899.9,1899.8,2.71985661]
[1742174069195,4.57877,1899.9,1899.8,2.71985661]
[1742174069596,6.69417,1899.9,1899.8,2.71985661]
[1742174069997,6.69417,1899.9,1899.8,40.8]
[1742174070594,0.7139,1899.9,1899.8,40.8]
[1742174070799,4.2114,1900.0,1899.8,41.85282]
[1742174071001,5.26414,1900.0,1899.8,42.1381]
[1742174071202,5.26414,1900.0,1899.9,1.3381]
[1742174071398,3.535,1900.0,1899.9,5.11072661]
[1742174071700,3.542,1900.2,1900.1,1.05261]
[1742174071903,3.542,1900.2,1900.1,4.26041]
[1742174072095,3.542,1900.2,1900.1,47.78026661]
[1742174072296,1.05236,1900.7,1900.2,2.63151]
[1742174072496,4.5984,1900.6,1900.4,1.05248]
[1742174072697,4.59838,1900.6,1900.5,1.3288]
[1742174073294,5.97228,1900.6,1900.5,1.3288]
[1742174073907,5.97228,1900.6,1900.5,2.38123]
[1742174074100,5.97228,1900.6,1900.5,1.3288]
[1742174081810,5.97228,1900.6,1900.5,2.38123]
[1742174082013,5.97228,1900.6,1900.5,5.58903]
[1742174082209,5.97228,1900.6,1900.5,4.5366]
[1742174082403,5.97228,1900.6,1900.5,5.58903]
[1742174084506,5.94728,1900.6,1900.5,5.58903]
[1742174085506,4.8949,1900.6,1900.5,5.58903]
[1742174086610,5.94728,1900.6,1900.5,5.58903]
[1742174087503,4.8949,1900.6,1900.5,5.58903]
[1742174087911,5.94728,1900.6,1900.5,5.58903]
[1742174088415,1.3739,1900.6,1900.5,8.30888661]
[1742174088714,4.1978,1900.7,1900.6,1.05238]
[1742174088914,4.1978,1900.7,1900.6,2.42548]
[1742174089218,5.6201,1900.7,1900.6,2.42548]
[1742174089515,6.67242,1900.7,1900.6,43.22548]
[1742174090215,5.6201,1900.7,1900.6,43.22548]
[1742174097717,0.71737794,1900.9,1900.6,45.94533661]
[1742174098014,0.00787794,1900.9,1900.8,4.26007]
[1742174098218,0.00787794,1900.9,1900.8,4.92117]
[1742174098513,0.00787794,1900.9,1900.8,45.72117]
[1742174098722,0.00787794,1900.9,1900.8,46.39807]
[1742174099114,0.00787794,1900.9,1900.8,49.11792661]
[1742174099610,1.05194,1901.5,1901.4,1.05192]
[1742174099815,5.95994,1901.5,1901.4,1.05192]
[1742174100010,4.908,1901.5,1901.4,1.05192]
[1742174100507,4.908,1901.5,1901.4,41.85192]
[1742174100912,6.2455,1901.5,1901.4,41.85192]
[1742174101319,4.2223,1901.5,1901.4,41.85192]
[1742174102418,0.7233,1901.5,1901.4,45.05972]
[1742174102920,2.1696,1901.5,1901.4,47.77957661]
[1742174104320,3.22148,1901.5,1901.4,43.51985661]
[1742174104518,6.42928,1901.5,1901.4,43.51985661]
[1742174104721,3.22148,1901.5,1901.4,43.51985661]
[1742174105517,1.05194,1901.4,1901.3,0.00787794]
[1742174105717,1.05194,1901.4,1901.0,1.05213]
[1742174105718,1.4496,1901.4,1901.0,1.05213]
[1742174105918,4.208,1901.3,1901.1,1.0521]
[1742174106118,1.4496,1901.2,1901.1,1.0521]
[1742174106522,1.4496,1901.2,1901.1,41.8521]
[1742174107023,2.50165,1901.2,1901.1,40.8]
[1742174107821,1.4496,1901.2,1901.1,40.8]
[1742174108925,4.9596,1901.2,1901.1,45.0599]
[1742174109116,4.9596,1901.2,1901.1,46.4388]
[1742174109316,4.9596,1901.2,1901.1,49.15865661]
[1742174109520,3.51,1901.2,1901.1,49.15865661]
[1742174109719,4.9325,1901.4,1901.3,1.05199]
[1742174109917,4.9325,1901.4,1901.2,1.3789]
[1742174110121,1.4235,1901.3,1901.2,2.43095]
[1742174110318,1.4235,1901.3,1901.2,43.23095]
[1742174110836,3.509,1901.4,1901.3,1.05199]
[1742174111029,4.9325,1901.4,1901.3,2.43089]
[1742174112027,4.9325,1901.4,1901.3,5.15074661]
[1742174112028,3.509,1901.4,1901.3,5.15074661]
[1742174112224,3.509,1901.4,1901.3,5.82654661]
[1742174113030,1.77519,1901.5,1901.4,1.05194]
[1742174113327,1.77519,1901.5,1901.4,43.19114]
[1742174113728,1.77519,1901.5,1901.4,42.1392]
[1742174113925,6.72229,1901.5,1901.4,42.1392]
[1742174114127,3.21929,1901.5,1901.4,42.1392]
[1742174114423,6.72129,1901.5,1901.4,42.1392]
[1742174114618,6.72129,1901.5,1901.4,40.8]
[1742174114925,7.43169,1901.5,1901.4,40.8]
[1742174116428,6.3798,1901.5,1901.4,43.22904]
[1742174116723,6.3798,1901.5,1901.4,42.1771]
[1742174116929,6.3798,1901.5,1901.4,43.22904]
[1742174117522,2.8778,1901.5,1901.4,43.22904]
[1742174117927,3.51587794,1901.6,1901.5,1.05188]
[1742174118132,4.90097794,1901.6,1901.5,5.57808]
[1742174118429,5.62177794,1901.6,1901.5,5.57808]
[1742174118630,5.62177794,1901.6,1901.5,46.37808]
[1742174120827,6.67360794,1901.6,1901.5,45.3262]
[1742174121023,6.67360794,1901.6,1901.5,46.37808]
[1742174121628,6.67360794,1901.6,1901.5,45.3262]
[1742174122636,9.88140794,1901.6,1901.5,40.8]
[1742174122941,6.67360794,1901.6,1901.5,40.8]
[1742174124633,6.67360794,1901.6,1901.5,42.2111]
[1742174131742,4.23667794,1901.6,1901.5,42.2111]
[1742174131942,5.28850794,1901.6,1901.5,42.2111]
[1742174132240,4.20967794,1901.6,1901.5,43.26298]
[1742174132444,5.26150794,1901.6,1901.5,42.2111]
[1742174137247,5.26150794,1901.6,1901.5,43.26298]
[1742174137945,5.26150794,1901.6,1901.5,42.2111]
[1742174138838,5.26150794,1901.6,1901.5,43.26298]
[1742174139044,5.26150794,1901.6,1901.5,42.2111]
[1742174141746,4.20967794,1901.6,1901.5,43.26298]
[1742174141945,3.48887794,1901.6,1901.5,43.26298]
[1742174142242,3.48887794,1901.6,1901.5,46.47078]
[1742174142243,0.00787794,1901.6,1901.5,46.47078]
[1742174143344,3.2078,1902.0,1901.9,1.05166]
[1742174143546,2.38665,1902.1,1902.0,1.0516]
[1742174143845,4.8111,1902.1,1902.0,1.0516]
[1742174144152,4.8111,1902.1,1902.0,2.3595]
[1742174144546,4.52755,1902.1,1902.0,2.3595]
[1742174144851,3.476,1902.1,1902.0,2.3595]
[1742174145051,4.52755,1902.1,1902.0,1.3079]
[1742174145243,4.52755,1902.1,1902.0,2.3595]
[1742174146046,3.476,1902.1,1902.0,2.3595]
[1742174146344,3.476,1902.1,1902.0,3.0847]
[1742174147144,4.52755,1902.1,1902.0,2.0331]
[1742174147349,4.52755,1902.1,1902.0,5.80455661]
[1742174147648,2.38825,1902.1,1902.0,5.80455661]
[1742174147845,5.86425,1902.1,1902.0,5.80455661]
[1742174148254,4.52755,1902.1,1902.0,5.80455661]
[1742174148851,1.05155,1902.1,1902.0,5.80455661]
[1742174150047,4.53536794,1902.2,1902.1,1.05155]
[1742174150354,4.53536794,1902.2,1902.1,4.5235]
[1742174150855,5.96046794,1902.2,1902.1,46.37505]
[1742174151247,5.96046794,1902.2,1902.1,45.3235]
[1742174151550,5.96046794,1902.2,1902.1,46.37505]
[1742174151853,4.90897794,1902.2,1902.1,46.37505]
[1742174152450,5.96046794,1902.2,1902.1,40.8]
[1742174152846,1.0516,1902.0,1901.9,0.00787794]
[1742174153252,1.05177,1901.7,1901.6,4.04105661]
[1742174153458,4.52677,1901.7,1901.6,4.04105661]
[1742174153953,4.52677,1901.7,1901.6,44.84105661]
[1742174154153,4.52677,1901.7,1901.6,42.1212]
[1742174154358,4.52677,1901.7,1901.6,40.8]
[1742174154655,5.96507,1901.7,1901.6,40.8]
[1742174156558,6.65947,1901.7,1901.6,40.8]
[1742174159357,6.65947,1901.7,1901.6,42.2213]
[1742174162155,3.18447,1901.7,1901.6,42.2213]
[1742174162457,6.66047,1901.7,1901.6,42.2213]
[1742174164464,5.22217,1901.7,1901.6,42.2213]
[1742174164767,5.22217,1901.7,1901.6,45.4291]
[1742174164957,4.52777,1901.7,1901.6,45.4291]
[1742174166165,4.52777,1901.7,1901.6,42.2213]
[1742174166958,4.52777,1901.7,1901.6,43.27313]
[1742174167363,4.52777,1901.7,1901.6,42.2213]
[1742174167660,7.73557,1901.7,1901.6,40.8]
[1742174167865,8.45427,1901.7,1901.6,40.8]
[1742174170760,1.05188,1901.5,1901.4,2.71985661]
[1742174170965,1.05205,1901.2,1901.1,4.06305661]
[1742174171161,4.52805,1901.2,1901.1,4.06305661]
[1742174171464,4.52805,1901.2,1901.1,1.3432]
[1742174171663,4.52805,1901.2,1901.0,2.71985661]
[1742174171664,1.0521,1901.1,1901.0,2.71985661]
[1742174171858,1.05221,1900.9,1900.8,4.06305661]
[1742174172166,4.52821,1900.9,1900.8,44.86305661]
[1742174172465,4.52821,1900.9,1900.8,42.1432]
[1742174172660,5.24651,1900.9,1900.8,42.1432]
[1742174172868,6.59221,1900.9,1900.8,42.1432]
[1742174173061,6.59221,1900.9,1900.8,40.8]
[1742174173263,1.0526,1900.2,1900.1,4.10065661]
[1742174173469,1.0526,1900.2,1900.1,2.71985661]
[1742174173470,4.5286,1900.2,1900.1,2.71985661]
[1742174174269,4.5286,1900.2,1900.1,43.51985661]
[1742174174467,5.8743,1900.2,1900.1,43.51985661]
[1742174175555,4.5286,1900.2,1900.1,43.51985661]
[1742174176258,4.5286,1900.2,1900.1,40.8]
[1742174176460,9.1563,1900.2,1900.1,40.8]
[1742174177169,5.9485,1900.2,1900.1,40.8]
[1742174177964,4.5286,1900.2,1900.1,40.8]
[1742174179373,5.9297,1900.2,1900.1,40.8]
[1742174182367,9.1375,1900.2,1900.1,40.8]
[1742174183369,1.05271,1900.0,1899.9,2.71985661]
[1742174183570,1.05277,1899.9,1899.8,1.4452]
[1742174183770,1.05293,1899.6,1899.5,2.71985661]
[1742174184077,4.53093,1899.6,1899.5,2.71985661]
[1742174184369,4.53093,1899.6,1899.5,43.51985661]
[1742174185370,5.95543,1899.6,1899.5,43.51985661]
[1742174186272,1.05321,1899.1,1899.0,2.71985661]
[1742174186578,4.53721,1899.1,1899.0,2.71985661]
[1742174186773,1.05327,1899.0,1898.9,2.71985661]
[1742174186973,1.05327,1899.0,1898.9,4.12595661]
[1742174187170,1.05327,1899.0,1898.9,44.92595661]
[1742174188180,2.36667,1899.0,1898.9,44.92595661]
[1742174188578,1.05327,1899.0,1898.9,44.92595661]
[1742174188778,4.54514909,1899.1,1898.9,48.13375661]